fUST/lending_fUST_20250810
["ID","MTS","AMOUNT","RATE_DAILY","PERIOD"]
[378203759,1754784633449,-460.0,0.00021093,2]
[378203760,1754784633458,-460.0,0.00021093,2]
[378203761,1754784633468,-460.0,0.00021093,2]
[378203762,1754784633478,-460.0,0.00021093,2]
[378203763,1754784633487,-460.0,0.00021093,2]
[378203764,1754784633497,-460.0,0.00021093,2]
[378203765,1754784633507,-460.0,0.00021093,2]
[378203766,1754784633517,-460.0,0.00021093,2]
[378203767,1754784633526,-460.0,0.00021093,2]
[378203768,1754784633536,-460.0,0.00021093,2]
[378203769,1754784633545,-460.0,0.00021093,2]
[378203770,1754784633554,-460.0,0.00021093,2]
[378203771,1754784633564,-460.0,0.00021093,2]
[378203772,1754784633573,-417.5256129,0.00021093,2]
[378203773,1754784633583,-460.0,0.00021093,2]
[378203774,1754784633592,-460.0,0.00021093,2]
[378203775,1754784633601,-460.0,0.00021093,2]
[378203776,1754784633610,-460.0,0.00021093,2]
[378203777,1754784633620,-460.0,0.00021093,2]
[378203778,1754784633631,-460.0,0.00021094,2]
[378203779,1754784633641,-460.0,0.00021094,2]
[378203780,1754784633650,-460.0,0.00021094,2]
[378203781,1754784633660,-460.0,0.00021094,2]
[378203782,1754784633670,-472.22931958,0.00021094,2]
[378203783,1754784633680,-351.36848967,0.00021094,2]
[378203784,1754784633690,-460.0,0.00021094,2]
[378203785,1754784633699,-460.0,0.00021094,2]
[378203786,1754784633709,-460.0,0.00021094,2]
[378203787,1754784633719,-460.0,0.00021094,2]
[378203788,1754784633728,-460.0,0.00021094,2]
[378203789,1754784633737,-460.0,0.00021094,2]
[378203790,1754784633746,-460.0,0.00021094,2]
[378203791,1754784633755,-460.0,0.00021094,2]
[378203792,1754784633764,-460.0,0.00021094,2]
[378203793,1754784633773,-460.0,0.00021094,2]
[378203794,1754784633782,-460.0,0.00021094,2]
[378203795,1754784633792,-460.0,0.00021094,2]
[378203796,1754784633809,-460.0,0.00021094,2]
[378203797,1754784633821,-460.0,0.00021094,2]
[378203798,1754784633830,-460.0,0.00021094,2]
[378203799,1754784633840,-213.31969914,0.00021094,2]
[378203800,1754784633850,-284.10782562,0.00021094,2]
[378203801,1754784633859,-460.0,0.00021094,2]
[378203802,1754784633868,-460.0,0.00021094,2]
[378203803,1754784633878,-460.0,0.00021094,2]
[378203804,1754784633888,-460.0,0.00021094,2]
[378203805,1754784633898,-460.0,0.00021094,2]
[378203806,1754784633907,-510.5,0.00021094,2]
[378203807,1754784633917,-460.0,0.00021094,2]
[378203808,1754784633927,-460.0,0.00021094,2]
[378203809,1754784633937,-460.0,0.00021094,2]
[378203810,1754784633946,-460.0,0.00021094,2]
[378203811,1754784633957,-460.0,0.00021094,2]
[378203812,1754784633967,-460.0,0.00021094,2]
[378203813,1754784633977,-460.0,0.00021094,2]
[378203814,1754784633987,-460.0,0.00021094,2]
[378203815,1754784633997,-460.0,0.00021094,2]
[378203816,1754784634007,-460.0,0.00021094,2]
[378203817,1754784634016,-460.0,0.00021094,2]
[378203818,1754784634027,-460.0,0.00021094,2]
[378203819,1754784634037,-460.0,0.00021094,2]
[378203820,1754784634050,-460.0,0.00021094,2]
[378203821,1754784634060,-460.0,0.00021094,2]
[378203822,1754784634071,-460.0,0.00021094,2]
[378203823,1754784634083,-460.0,0.00021094,2]
[378203824,1754784634093,-460.0,0.00021094,2]
[378203825,1754784634103,-460.0,0.00021094,2]
[378203826,1754784634113,-153.60118864,0.00021094,2]
[378203827,1754784634125,-460.0,0.00021094,2]
[378203828,1754784634136,-460.0,0.00021094,2]
[378203829,1754784634146,-460.0,0.00021094,2]
[378203830,1754784634156,-460.0,0.00021094,2]
[378203831,1754784634166,-460.0,0.00021094,2]
[378203832,1754784634176,-525.28985447,0.00021094,2]
[378203833,1754784634187,-460.0,0.00021094,2]
[378203834,1754784634197,-164.73490673,0.00021094,2]
[378203835,1754784634207,-460.0,0.00021094,2]
[378203836,1754784634217,-460.0,0.00021094,2]
[378203837,1754784634417,-300.41408488,0.00021094,2]
[378203838,1754784634429,-460.0,0.00021094,2]
[378203839,1754784634439,-460.0,0.00021094,2]
[378203840,1754784634448,-460.0,0.00021094,2]
[378203841,1754784634458,-460.0,0.00021094,2]
[378203842,1754784634468,-460.0,0.00021094,2]
[378203843,1754784634477,-285.73,0.00021094,2]
[378203844,1754784634487,-460.0,0.00021094,2]
[378203845,1754784634497,-460.0,0.00021094,2]
[378203846,1754784634506,-460.0,0.00021094,2]
[378203847,1754784634516,-460.0,0.00021094,2]
[378203848,1754784634525,-392.03481552,0.00021095,2]
[378203849,1754784634535,-460.0,0.00021095,2]
[378203850,1754784634544,-460.0,0.00021095,2]
[378203851,1754784634555,-460.0,0.00021095,2]
[378203852,1754784634566,-468.69196498,0.00021095,2]
[378203853,1754784634576,-460.0,0.00021095,2]
[378203854,1754784634586,-460.0,0.00021095,2]
[378203855,1754784634596,-460.0,0.00021095,2]
[378203856,1754784634605,-460.0,0.00021095,2]
[378203857,1754784634616,-460.0,0.00021095,2]
[378203858,1754784634626,-460.0,0.00021095,2]
[378203859,1754784634637,-460.0,0.00021095,2]
[378203860,1754784634647,-460.0,0.00021095,2]
[378203861,1754784634657,-460.0,0.00021095,2]
[378203862,1754784634667,-460.0,0.00021095,2]
[378203863,1754784634677,-307.1921634,0.00021095,2]
[378203864,1754784634687,-460.0,0.00021095,2]
[378203865,1754784634697,-460.0,0.00021095,2]
[378203866,1754784634706,-463.99138468,0.00021095,2]
[378203867,1754784634716,-460.0,0.00021095,2]
[378203868,1754784634726,-574.87662672,0.00021095,2]
[378203869,1754784634736,-454.0934652,0.00021095,2]
[378203870,1754784634865,-5.9065348,0.00021095,2]
[378203871,1754784634875,-466.03823078,0.00021095,2]
[378203872,1754784634885,-460.0,0.00021095,2]
[378203873,1754784634895,-460.0,0.00021095,2]
[378203874,1754784634905,-175.67466108,0.00021095,2]
[378203875,1754784634915,-460.0,0.00021095,2]
[378203876,1754784634925,-460.0,0.00021095,2]
[378203877,1754784634935,-460.0,0.00021095,2]
[378203878,1754784634944,-233.03493909,0.00021095,2]
[378203879,1754784634954,-464.30959007,0.00021095,2]
[378203880,1754784634963,-460.0,0.00021095,2]
[378203881,1754784634973,-460.0,0.00021095,2]
[378203882,1754784634983,-460.0,0.00021095,2]
[378203883,1754784634992,-460.0,0.00021095,2]
[378203884,1754784635002,-388.54820801,0.00021095,2]
[378203896,1754784638451,-71.45179199,0.00021095,2]
[378203897,1754784638461,-460.0,0.00021095,2]
[378203898,1754784638471,-460.0,0.00021095,2]
[378203899,1754784638481,-460.0,0.00021095,2]
[378203900,1754784638491,-460.0,0.00021095,2]
[378203901,1754784638500,-460.0,0.00021095,2]
[378203902,1754784638510,-460.0,0.00021095,2]
[378203903,1754784638519,-460.0,0.00021095,2]
[378203904,1754784638528,-460.0,0.00021095,2]
[378203905,1754784638538,-460.0,0.00021095,2]
[378203906,1754784638547,-460.0,0.00021095,2]
[378203907,1754784638557,-128.54820801,0.00021095,2]
[378203908,1754784638570,-331.45179199,0.00021095,2]
[378203909,1754784638580,-460.0,0.00021095,2]
[378203910,1754784638591,-460.0,0.00021095,2]
[378203911,1754784638601,-460.0,0.00021095,2]
[378203912,1754784638611,-460.0,0.00021095,2]
[378203913,1754784638620,-460.0,0.00021095,2]
[378203914,1754784638630,-460.0,0.00021095,2]
[378203915,1754784638640,-480.72218901,0.00021095,2]
[378203916,1754784638650,-460.0,0.00021095,2]
[378203917,1754784638659,-460.0,0.00021095,2]
[378203918,1754784638669,-460.0,0.00021095,2]
[378203919,1754784638679,-460.0,0.00021095,2]
[378203920,1754784638689,-460.0,0.00021095,2]
[378203921,1754784638699,-460.0,0.00021095,2]
[378203922,1754784638709,-500.0,0.00021095,2]
[378203923,1754784638719,-460.0,0.00021095,2]
[378203924,1754784638729,-460.0,0.00021095,2]
[378203925,1754784638739,-460.0,0.00021095,2]
[378203926,1754784638750,-460.0,0.00021095,2]
[378203927,1754784638761,-460.0,0.00021095,2]
[378203928,1754784638771,-460.0,0.00021095,2]
[378203929,1754784638780,-460.0,0.00021095,2]
[378203930,1754784638790,-460.0,0.00021095,2]
[378203931,1754784638799,-460.0,0.00021095,2]
[378203932,1754784638808,-460.0,0.00021095,2]
[378203933,1754784638819,-460.0,0.00021095,2]
[378203934,1754784638828,-460.0,0.00021095,2]
[378203935,1754784638837,-460.0,0.00021095,2]
[378203936,1754784638847,-462.54539418,0.00021095,2]
[378203937,1754784638856,-460.0,0.00021095,2]
[378203938,1754784638869,-460.0,0.00021095,2]
[378203939,1754784638879,-263.5,0.00021159,10]
[378203940,1754784638890,-422.60834248,0.00021168,2]
[378203941,1754784638904,-900.83840313,0.00021168,2]
[378203942,1754784638913,-900.83840313,0.00021168,2]
[378203943,1754784638922,-900.83840313,0.00021168,2]
[378203944,1754784638932,-900.83840313,0.00021168,2]
[378203945,1754784638941,-900.83840313,0.00021168,2]
[378203946,1754784638951,-900.83840313,0.00021168,2]
[378203947,1754784638960,-900.83840313,0.00021168,2]
[378203948,1754784638970,-900.83840313,0.00021168,2]
[378203949,1754784638980,-900.83840313,0.00021168,2]
[378203950,1754784638989,-900.83840313,0.00021168,2]
[378203951,1754784638999,-900.83840313,0.00021168,2]
[378203952,1754784639008,-900.83840313,0.00021168,2]
[378203953,1754784639017,-900.83840313,0.00021168,2]
[378203954,1754784639026,-900.83840313,0.00021168,2]
[378203955,1754784639035,-918.85517119,0.00021168,2]
[378203956,1754784639049,-918.85517119,0.00021168,2]
[378203957,1754784639059,-918.85517119,0.00021168,2]
[378203958,1754784639068,-918.85517119,0.00021168,2]
[378203959,1754784639079,-918.85517119,0.00021168,2]
[378203960,1754784639089,-918.85517119,0.00021168,2]
[378203961,1754784639099,-918.85517119,0.00021168,2]
[378203962,1754784639108,-1030.64921702,0.00021168,2]
[378203963,1754784639120,-1030.64921702,0.00021168,2]
[378203964,1754784639130,-1030.64921702,0.00021168,2]
[378203965,1754784639140,-1030.64921702,0.00021168,2]
[378203966,1754784639149,-40286.44433314,0.00021169,2]
[378203967,1754784639162,-2867.33904846,0.00021169,2]
[378203968,1754784639172,-776.8,0.00021258,2]
[378203969,1754784639182,-460.0,0.00021258,2]
[378203970,1754784639191,-460.0,0.00021267,2]
[378203971,1754784639201,-460.0,0.00021366,2]
[378203972,1754784639210,-460.0,0.00021367,2]
[378203973,1754784639220,-460.0,0.00021367,2]
[378203974,1754784639229,-409.75,0.00021367,2]
[378203975,1754784639239,-460.0,0.00021367,2]
[378203976,1754784639255,-460.0,0.00021367,2]
[378203977,1754784639264,-460.0,0.00021367,2]
[378203978,1754784639274,-460.0,0.00021367,2]
[378203979,1754784639283,-460.0,0.00021367,2]
[378203980,1754784639293,-667.8,0.00021367,2]
[378203981,1754784639302,-155.53,0.00021367,2]
[378203982,1754784639311,-460.0,0.00021367,2]
[378203983,1754784639321,-507.11,0.00021367,2]
[378203984,1754784639331,-460.0,0.00021367,2]
[378203985,1754784639341,-460.0,0.00021367,2]
[378203986,1754784639351,-460.0,0.00021367,2]
[378203987,1754784639360,-514.85,0.00021367,2]
[378203988,1754784639370,-460.0,0.00021367,2]
[378203989,1754784639379,-460.0,0.00021367,2]
[378203990,1754784639389,-386.17128816,0.00021367,2]
[378203991,1754784639399,-460.0,0.00021367,2]
[378203992,1754784639408,-460.0,0.00021367,2]
[378203993,1754784639417,-460.0,0.00021367,2]
[378203994,1754784639427,-460.0,0.00021367,2]
[378203995,1754784639436,-460.0,0.00021367,2]
[378203996,1754784639445,-460.0,0.00021368,2]
[378203997,1754784639456,-460.0,0.00021368,2]
[378203998,1754784639466,-181.17,0.00021368,2]
[378203999,1754784639476,-460.0,0.00021368,2]
[378204000,1754784639485,-460.0,0.00021368,2]
[378204001,1754784639495,-460.0,0.00021368,2]
[378204002,1754784639505,-460.0,0.00021368,2]
[378204003,1754784639515,-241.78,0.00021368,2]
[378204004,1754784639524,-460.0,0.00021368,2]
[378204005,1754784639535,-460.0,0.00021368,2]
[378204006,1754784639545,-460.0,0.00021368,2]
[378204007,1754784639554,-151.31,0.00021368,2]
[378204008,1754784639564,-460.0,0.00021368,2]
[378204009,1754784639574,-460.0,0.00021368,2]
[378204010,1754784639583,-460.0,0.00021368,2]
[378204011,1754784639594,-460.0,0.00021368,2]
[378204012,1754784639603,-460.0,0.00021368,2]
[378204013,1754784639613,-460.0,0.00021369,2]
[378204014,1754784639623,-462.78268466,0.00021369,2]
[378204015,1754784639633,-460.0,0.00021369,2]
[378204016,1754784639643,-460.0,0.00021369,2]
[378204017,1754784639652,-460.0,0.00021369,2]
[378204018,1754784639663,-216.27729524,0.00021369,2]
[378204019,1754784639672,-460.0,0.00021369,2]
[378204020,1754784639682,-460.0,0.00021369,2]
[378204021,1754784639691,-460.0,0.00021369,2]
[378204022,1754784639701,-460.0,0.00021369,2]
[378204023,1754784639711,-460.0,0.00021369,2]
[378204024,1754784639720,-776.8,0.00021532,2]
[378204025,1754784639730,-460.0,0.00021532,2]
[378204026,1754784639739,-460.0,0.00021541,2]
[378204027,1754784639749,-460.0,0.0002164,2]
[378204028,1754784639758,-460.0,0.00021641,2]
[378204029,1754784639767,-460.0,0.00021641,2]
[378204030,1754784639776,-460.0,0.00021641,2]
[378204031,1754784639785,-460.0,0.00021641,2]
[378204032,1754784639795,-460.0,0.00021641,2]
[378204033,1754784639805,-230.34,0.00021641,2]
[378204034,1754784639814,-667.8,0.00021641,2]
[378204035,1754784639824,-192.51,0.00021641,2]
[378204036,1754784639834,-460.0,0.00021641,2]
[378204037,1754784639843,-586.0,0.00021641,2]
[378204038,1754784639852,-460.0,0.00021641,2]
[378204039,1754784639862,-392.75318635,0.00021641,2]
[378204041,1754784639875,-67.24681365,0.00021641,2]
[378204043,1754784639885,-460.0,0.00021641,2]
[378204044,1754784639894,-460.0,0.00021641,2]
[378204046,1754784639903,-256.76,0.00021642,2]
[378204047,1754784639913,-207.23,0.00021642,2]
[378204048,1754784639923,-292.78,0.00021642,2]
[378204049,1754784639933,-460.0,0.00021642,2]
[378204050,1754784639943,-460.0,0.00021642,2]
[378204051,1754784639952,-460.0,0.00021642,2]
[378204052,1754784639962,-460.0,0.00021642,2]
[378204053,1754784639971,-54.30555471,0.00021642,2]
[378204055,1754784639984,-405.69444529,0.00021642,2]
[378204057,1754784639994,-460.0,0.00021642,2]
[378204058,1754784640005,-804.22949233,0.00021655,2]
[378204059,1754784640014,-776.8,0.00021806,2]
[378204060,1754784640023,-460.0,0.00021806,2]
[378204061,1754784640063,-460.0,0.00021815,2]
[378204062,1754784640073,-241.06353279,0.00021815,2]
[378204063,1754784640083,-155.0,0.00021836,5]
[378204064,1754784640093,-460.0,0.00021914,2]
[378204066,1754784640102,-460.0,0.00021915,2]
[378204067,1754784640113,-460.0,0.00021915,2]
[378204069,1754784640124,-460.0,0.00021915,2]
[378204071,1754784640133,-460.0,0.00021915,2]
[378204073,1754784640142,-460.0,0.00021915,2]
[378204075,1754784640153,-667.8,0.00021915,2]
[378204077,1754784640163,-550.67,0.00021915,2]
[378204079,1754784640173,-367.17,0.00021915,2]
[378204081,1754784640183,-339.7,0.00021915,2]
[378204083,1754784640193,-460.0,0.00021915,2]
[378204085,1754784640202,-460.0,0.00021915,2]
[378204087,1754784640213,-460.0,0.00021916,2]
[378204089,1754784640223,-460.0,0.00021916,2]
[378204091,1754784640233,-460.0,0.00021916,2]
[378204093,1754784640242,-460.0,0.00021916,2]
[378204095,1754784640253,-460.0,0.00021916,2]
[378204097,1754784640262,-460.0,0.00021916,2]
[378204099,1754784640271,-277.97348263,0.00021917,2]
[378204101,1754784640283,-1989.71651737,0.00021917,2]
[378204103,1754784640293,-166.0,0.00022,2]
[378204105,1754784640303,-253.863948,0.00022062,2]
[378204107,1754784640314,-776.8,0.0002208,2]
[378204109,1754784640324,-460.0,0.0002208,2]
[378204111,1754784640333,-460.0,0.00022089,2]
[378204113,1754784640343,-242.85,0.00022143,2]
[378204115,1754784640353,-200.0,0.00022147,15]
[378204117,1754784640362,-300.0,0.00022147,15]
[378204119,1754784640372,-460.0,0.00022188,2]
[378204121,1754784640381,-460.0,0.00022189,2]
[378204123,1754784640391,-460.0,0.00022189,2]
[378204125,1754784640400,-460.0,0.00022189,2]
[378204127,1754784640410,-460.0,0.00022189,2]
[378204129,1754784640420,-246.98,0.00022189,2]
[378204131,1754784640430,-667.8,0.00022189,2]
[378204133,1754784640439,-460.0,0.00022189,2]
[378204135,1754784640449,-460.0,0.00022189,2]
[378204137,1754784640458,-160.04,0.0002219,2]
[378204139,1754784640468,-460.0,0.0002219,2]
[378204141,1754784640477,-199.09218968,0.0002219,2]
[378204143,1754784640490,-260.90781032,0.0002219,2]
[378204146,1754784640500,-460.0,0.0002219,2]
[378204148,1754784640510,-460.0,0.0002219,2]
[378204150,1754784640519,-460.0,0.0002219,2]
[378204152,1754784640528,-150.0,0.00022223,2]
[378204154,1754784640538,-776.8,0.00022354,2]
[378204156,1754784640548,-460.0,0.00022354,2]
[378204158,1754784640557,-153.07077463,0.00022363,2]
[378204160,1754784640567,-460.0,0.00022363,2]
[378204162,1754784640577,-151.0,0.00022363,2]
[378204164,1754784640587,-460.0,0.00022462,2]
[378204166,1754784640596,-460.0,0.00022463,2]
[378204168,1754784640605,-460.0,0.00022463,2]
[378204170,1754784640614,-429.68949905,0.00022463,2]
[378204178,1754784640677,-30.31050095,0.00022463,2]
[378204179,1754784640687,-476.52648032,0.00022463,2]
[378204205,1754784643805,-339.72560719,0.00021093,2]
[378204216,1754784646969,-120.27439281,0.00021093,2]
[378204217,1754784646979,-283.63717399,0.00021093,2]
[378204218,1754784646994,-176.36282601,0.00021093,2]
[378204219,1754784647004,-510.28560601,0.00021917,2]
[378204220,1754784647017,-1662.91439399,0.00021917,2]
[378204221,1754784647027,-191.27351968,0.00022463,2]
[378204222,1754784647038,-460.0,0.00022463,2]
[378204223,1754784647051,-389.6874096,0.00022463,2]
[378204224,1754784647061,-460.0,0.00022464,2]
[378204225,1754784647071,-460.0,0.00022464,2]
[378204226,1754784647082,-460.0,0.00022464,2]
[378204227,1754784647092,-460.0,0.00022464,2]
[378204228,1754784647103,-460.0,0.00022464,2]
[378204229,1754784647112,-275.9550218,0.00022488,2]
[378204230,1754784647125,-455.83,0.00022599,2]
[378204231,1754784647135,-776.8,0.00022628,2]
[378204232,1754784647145,-460.0,0.00022628,2]
[378204233,1754784647155,-232.34,0.00022637,2]
[378204234,1754784647165,-500.0,0.00022713,2]
[378204235,1754784647176,-500.0,0.00022713,2]
[378204236,1754784647185,-469.25,0.00022736,2]
[378204237,1754784647195,-460.0,0.00022737,2]
[378204238,1754784647205,-460.0,0.00022737,2]
[378204239,1754784647215,-460.0,0.00022737,2]
[378204240,1754784647224,-667.8,0.00022737,2]
[378204241,1754784647235,-460.0,0.00022737,2]
[378204242,1754784647245,-460.0,0.00022738,2]
[378204243,1754784647255,-460.0,0.00022738,2]
[378204244,1754784647264,-460.0,0.00022738,2]
[378204245,1754784647273,-460.0,0.00022738,2]
[378204246,1754784647283,-460.0,0.00022738,2]
[378204247,1754784647293,-250.0,0.00022771,2]
[378204248,1754784647302,-500.0,0.00022773,2]
[378204249,1754784647313,-611.52703329,0.00022814,2]
[378204250,1754784647323,-500.0,0.00022814,2]
[378204251,1754784647332,-500.0,0.00022814,2]
[378204252,1754784647342,-160.0,0.00022833,2]
[378204253,1754784647353,-216.61183532,0.00022856,2]
[378204254,1754784647364,-842.95011917,0.00022856,2]
[378204255,1754784647374,-12666.14847857,0.00022856,2]
[378204256,1754784647383,-231.92402426,0.00022856,2]
[378204257,1754784647393,-160.0,0.00022856,2]
[378204258,1754784647403,-461.55179734,0.00022856,2]
[378204259,1754784647413,-160.0,0.00022856,2]
[378204260,1754784647422,-527.77735381,0.00022856,2]
[378204261,1754784647432,-160.0,0.00022857,2]
[378204262,1754784647441,-160.0,0.00022857,2]
[378204263,1754784647451,-215.40758176,0.00022857,2]
[378204264,1754784647461,-776.8,0.00022902,2]
[378204265,1754784647471,-460.0,0.00022902,2]
[378204266,1754784647480,-420.0,0.00022941,2]
[378204267,1754784647491,-160.0,0.00023,2]
[378204268,1754784647500,-164.78432065,0.00023011,2]
[378204269,1754784702813,150.0,0.00025987,30]
[378204270,1754784735465,931.9824404,0.000199,2]
[378204271,1754784737670,210.33741802,0.00020994,2]
[378204272,1754784737693,40000.0,0.00020994,2]
[378204273,1754784737716,39789.66258198,0.00020994,2]
[378204274,1754784744117,210.33741802,0.00021,2]
[378204275,1754784744140,4452.15375391,0.00021,2]
[378204276,1754784752090,5000.0,0.00021,2]
[378204277,1754784761252,221.09583884,8.6e-07,2]
[378204278,1754784767946,5000.0,0.00021,2]
[378204279,1754784780216,150.0,0.00026021,30]
[378204280,1754784783382,5000.0,0.00021,2]
[378204281,1754784799426,5000.0,0.00021,2]
[378204282,1754784800175,314.696367,0.00013699,2]
[378204283,1754784800384,314.696367,0.00020187,2]
[378204284,1754784803835,151.11938259,0.00020992,2]
[378204286,1754784815722,5000.0,0.00021,2]
[378204287,1754784816395,5732.3527507,0.00031553,30]
[378204288,1754784831112,5000.0,0.00021,2]
[378204289,1754784847308,4546.23829066,0.00021,2]
[378204290,1754784847332,453.76170934,0.00021,2]
[378204291,1754784858293,150.0,0.00026036,30]
[378204292,1754784862761,5000.0,0.00021,2]
[378204293,1754784879694,5000.0,0.00021,2]
[378204294,1754784881084,1041.36365001,0.0002009,2]
[378204295,1754784901541,28504.87464065,0.00020994,2]
[378204296,1754784901569,31495.12535935,0.00020994,2]
[378204297,1754784913143,1325.47659935,0.000199,2]
[378204298,1754784938990,150.0,0.00026158,30]
[378204300,1754785007831,162.244167,0.00020259,2]
[378204301,1754785015370,150.0,0.00026142,30]
[378204302,1754785025549,252.33626998,0.00020991,2]
[378204303,1754785050452,160.15683092,0.00020991,2]
[378204304,1754785085329,1281.29404599,0.000199,2]
[378204305,1754785089551,150.0,0.00026114,30]
[378204306,1754785107486,5323.36672741,0.00020236,2]
[378204307,1754785107510,19576.63327259,0.00020236,2]
[378204308,1754785163388,150.0,0.0002615,30]
[378204309,1754785169528,479.28386457,0.00020993,2]
[378204310,1754785182548,694.24243334,0.00020047,2]
[378204311,1754785246330,150.0,0.00026143,30]
[378204312,1754785262115,1238.58424466,0.000199,2]
[378204314,1754785404887,419.37338149,0.00020993,2]
[378204315,1754785456756,1197.29810292,0.000199,2]
[378204316,1754785486383,462.82828889,0.0001998,2]
[378204317,1754785520696,150.0,0.00026054,30]
[378204318,1754785571483,1000.0,0.00031551,30]
[378204320,1754785596109,150.0,0.00026058,30]
[378204321,1754785633842,1157.38816633,0.000199,2]
[378204322,1754785669758,150.0,0.00026043,30]
[378204324,1754785711351,200.0,0.00030058,120]
[378204325,1754785717037,12003.1033997,0.0002,2]
[378204327,1754785723268,2771.26484551,0.0002,2]
[378204328,1754785723290,7059.81471254,0.0002,2]
[378204329,1754785724555,17435.91068995,0.0001,2]
[378204330,1754785724777,202.81051303,0.00021,2]
[378204331,1754785743245,150.0,0.00026165,30]
[378204334,1754785787939,308.55219259,0.000189,2]
[378204335,1754785818278,150.0,0.0002615,30]
[378204336,1754785821296,1118.80856066,0.000199,2]
[378204379,1754785832720,-253.863948,0.00021019,2]
[378204380,1754785832730,-355.20057549,0.00021019,2]
[378204382,1754785832777,-65.47275398,0.00021019,2]
[378204383,1754785832786,-300.0,0.0002109,2]
[378204384,1754785832799,-300.0,0.0002109,2]
[378204385,1754785832809,-300.0,0.0002109,2]
[378204386,1754785832818,-442.90112515,0.00021091,2]
[378204388,1754785832830,-17.09887485,0.00021091,2]
[378204390,1754785832843,-460.0,0.00021091,2]
[378204392,1754785832852,-1200.0,0.00021091,2]
[378204394,1754785832862,-460.0,0.00021091,2]
[378204396,1754785832871,-460.0,0.00021092,2]
[378204397,1754785832881,-481.58022864,0.00021092,2]
[378204399,1754785832891,-460.0,0.00021092,2]
[378204400,1754785832900,-460.0,0.00021092,2]
[378204401,1754785832914,-460.0,0.00021092,2]
[378204403,1754785832925,-541.15377307,0.00021092,2]
[378204404,1754785832934,-464.17874057,0.00021092,2]
[378204405,1754785832944,-380.18313724,0.00021092,2]
[378204406,1754785832954,-460.0,0.00021092,2]
[378204407,1754785832963,-460.0,0.00021092,2]
[378204408,1754785832973,-460.0,0.00021092,2]
[378204409,1754785832983,-475.33509788,0.00021092,2]
[378204410,1754785832992,-460.0,0.00021092,2]
[378204411,1754785833002,-460.0,0.00021092,2]
[378204412,1754785833011,-460.0,0.00021092,2]
[378204413,1754785833021,-460.0,0.00021092,2]
[378204414,1754785833031,-460.0,0.00021092,2]
[378204415,1754785833040,-460.0,0.00021092,2]
[378204416,1754785833050,-460.0,0.00021092,2]
[378204417,1754785833060,-500.0,0.00021092,2]
[378204418,1754785833070,-161.32437421,0.00021092,2]
[378204419,1754785833079,-500.0,0.00021092,2]
[378204420,1754785833089,-500.0,0.00021092,2]
[378204421,1754785833098,-552.37858907,0.00021092,2]
[378204422,1754785833109,-417.82124285,0.00021092,2]
[378204423,1754785833119,-460.0,0.00021092,2]
[378204424,1754785833129,-460.0,0.00021092,2]
[378204425,1754785833139,-460.0,0.00021092,2]
[378204426,1754785833148,-460.0,0.00021092,2]
[378204427,1754785833158,-471.11,0.00021092,2]